lending/lending_fUSD_20250429
["ID","MTS","AMOUNT","RATE_DAILY","PERIOD"]
[359369054,1745951475067,-500.0,0.00039953,2]
[359369055,1745951475076,-500.0,0.00039958,2]
[359369056,1745951475086,-500.0,0.00039958,2]
[359369057,1745951475097,-500.0,0.00039958,2]
[359369058,1745951475106,-500.0,0.00039958,2]
[359369059,1745951475117,-500.0,0.00039958,2]
[359369060,1745951475126,-500.0,0.00039958,2]
[359369061,1745951475135,-500.0,0.00039958,2]
[359369062,1745951475145,-1146.16,0.00039958,2]
[359369063,1745951475154,-26354.66354705,0.00039959,10]
[359369064,1745951475166,-24381.68173307,0.00039959,10]
[359369065,1745951475256,-470.0,0.00027397,2]
[359369066,1745951475266,-470.0,0.00027397,2]
[359369067,1745951475276,-46.084731,0.00027671,2]
[359369068,1745951475408,-470.0,0.00027397,2]
[359369069,1745951475418,-470.0,0.00027397,2]
[359369070,1745951475427,-470.0,0.00027397,2]
[359369071,1745951475437,-479.165269,0.00027671,2]
[359369072,1745951475447,-470.0,0.00027671,2]
[359369073,1745951475457,-470.0,0.00027945,2]
[359369074,1745951475466,-470.0,0.00028219,2]
[359369075,1745951475476,-470.0,0.00028493,2]
[359369076,1745951475486,-470.0,0.00028767,2]
[359369077,1745951475496,-470.0,0.00029039,2]
[359369078,1745951475508,-470.0,0.00029039,2]
[359369079,1745951475519,-470.0,0.00029041,2]
[359369080,1745951475529,-530.0,0.00029313,2]
[359369081,1745951475539,-470.0,0.00029313,2]
[359369082,1745951475548,-470.0,0.00029315,2]
[359369083,1745951475558,-470.0,0.00029587,2]
[359369084,1745951475568,-470.0,0.00029587,2]
[359369085,1745951475577,-470.0,0.00029589,2]
[359369086,1745951475586,-470.0,0.00029861,2]
[359369087,1745951475596,-290.9,0.00029861,2]
[359369088,1745951475606,-470.0,0.00029863,2]
[359369089,1745951475616,-408.43,0.00030135,2]
[359369090,1745951475625,-323.9,0.00030136,2]
[359369091,1745951475635,-151.0,0.00030409,7]
[359369092,1745951475645,-470.0,0.0003062,2]
[359369093,1745951475654,-470.0,0.0003062,2]
[359369094,1745951475664,-216.388211,0.00034519,7]
[359369095,1745951475673,-19968.06130585,0.00039959,10]
[359369096,1745951475685,-553.80201988,0.00039959,10]
[359369097,1745951475696,-4590.1905029,0.00039959,10]
[359369098,1745951521733,200.0,0.00030136,117]
[359369099,1745951521809,200.0,0.00027396,117]
[359369100,1745951521901,200.0,0.00027561,117]
[359369101,1745951559777,1000.0,0.0003,30]
[359369102,1745951646577,-161.8,0.00021236,2]
[359369103,1745951646600,-2.86,0.00021576,2]
[359369105,1745952396438,-394.46814541,0.00021414,2]
[359369106,1745952397856,152.69,0.00025086,120]
[359369107,1745952397916,152.69,0.00028222,120]
[359369108,1745952398138,152.69,0.00031358,120]
[359369109,1745952398577,152.69,0.00034494,120]
[359369110,1745952401669,-101.72570559,0.00021414,2]
[359369111,1745952401694,-190.67226629,0.00021576,2]
[359369112,1745952412920,-6.46773371,0.00021576,2]
[359369113,1745952412944,-240.04243982,0.0002191,2]
[359369114,1745952420737,-231.5093879,0.0002191,2]
[359369115,1745952423477,-227.5703451,0.0002191,2]
[359369121,1745952632391,-396.41,0.00021,2]
[359369122,1745952632408,-246.93441187,0.00021811,2]
[359369123,1745952632427,-1200.0,0.0002191,2]
[359369124,1745952632437,-300.0,0.0002191,2]
[359369125,1745952632447,-300.0,0.0002191,2]
[359369126,1745952632458,-16417.34770271,0.00021911,2]
[359369127,1745952632469,-415.87469936,0.00021911,2]
[359369128,1745952632484,-5234.1291851,0.00021911,2]
[359369129,1745952632497,-1832.64841283,0.00021911,2]
[359369130,1745952632506,-6839.87,0.00021911,2]
[359369131,1745952632516,-150.0,0.00021917,2]
[359369132,1745952632526,-179.51,0.00022446,2]
[359369133,1745952632536,-162.19,0.00022568,2]
[359369134,1745952632546,-150.0,0.00023287,2]
[359369135,1745952632557,-161.8,0.00023359,2]
[359369136,1745952632567,-200.0,0.00023359,2]
[359369137,1745952632577,-250.0,0.00023556,2]
[359369138,1745952632586,-200.0,0.00023708,2]
[359369139,1745952632596,-200.0,0.00023734,2]
[359369140,1745952632605,-420.0,0.00023811,2]
[359369141,1745952632617,-500.0,0.00023923,2]
[359369142,1745952632627,-250.0,0.00023992,2]
[359369143,1745952632638,-250.0,0.00023992,2]
[359369144,1745952632648,-162.19,0.0002443,2]
[359369145,1745952632658,-150.0,0.00024657,2]
[359369147,1745952632668,-1000.0,0.00024658,2]
[359369149,1745952632677,-701.38004785,0.000249,5]
[359369151,1745952632688,-2273.13722507,0.000249,5]
[359369153,1745952632698,-2974.5172727,0.000249,5]
[359369155,1745952632707,-2974.5172727,0.000249,5]
[359369156,1745952632718,-1000.0,0.00025046,2]
[359369158,1745952632727,-250.0,0.00025072,7]
[359369160,1745952632737,-150.0,0.00025072,2]
[359369162,1745952632746,-156.95,0.00025093,2]
[359369164,1745952632756,-200.0,0.00025181,2]
[359369166,1745952632765,-1000.0,0.00025278,2]
[359369168,1745952632775,-2974.5172727,0.00025279,5]
[359369170,1745952632784,-161.8,0.00025483,2]
[359369171,1745952632794,-942.15,0.00025592,2]
[359369173,1745952632803,-323.25731153,0.00025877,2]
[359369175,1745952632814,-263.74268847,0.00025877,2]
[359369177,1745952632824,-150.0,0.00026027,2]
[359369179,1745952632833,-2974.5172727,0.00026072,6]
[359369181,1745952632844,-4377.25,0.00026247,2]
[359369183,1745952632854,-210.16114999,0.00026265,2]
[359369185,1745952632863,-162.19,0.00026293,2]
[359369187,1745952632872,-150.0,0.00026383,2]
[359369189,1745952632882,-300.0,0.00026545,2]
[359369191,1745952632891,-300.0,0.00026552,2]
[359369193,1745952632901,-300.0,0.00026559,2]
[359369195,1745952632910,-300.0,0.00026566,2]
[359369197,1745952632919,-300.0,0.00026573,2]
[359369198,1745952632928,-300.0,0.0002658,2]
[359369200,1745952632938,-300.0,0.00026587,2]
[359369202,1745952632948,-300.0,0.00026594,2]
[359369204,1745952632957,-300.0,0.00026601,2]
[359369206,1745952632967,-300.0,0.00026608,2]
[359369208,1745952632977,-300.0,0.00026614,2]
[359369210,1745952632986,-300.0,0.00026621,2]
[359369212,1745952632995,-300.0,0.00026628,2]
[359369214,1745952633004,-300.0,0.00026635,2]
[359369215,1745952633013,-300.0,0.00026642,2]
[359369217,1745952633022,-300.0,0.00026649,2]
[359369219,1745952633030,-300.0,0.00026656,2]
[359369221,1745952633040,-300.0,0.00026663,2]
[359369223,1745952633050,-300.0,0.0002667,2]
[359369225,1745952633059,-300.0,0.00026677,2]
[359369227,1745952633068,-2974.5172727,0.00026866,7]
[359369229,1745952633078,-13003.34123822,0.00027287,2]
[359369231,1745952633095,-580.04130698,0.00027287,2]
[359369302,1745952638298,-577.53937847,0.00027287,2]
[359369305,1745952638310,-3057.374,0.00027287,2]
[359369306,1745952638459,-373.99730778,0.00027287,2]
[359369307,1745952638472,-8431.1612707,0.00027287,2]
[359369308,1745952638616,-5815.33981196,0.00027287,2]
[359369309,1745952638628,-519.750011,0.00027287,2]
[359369310,1745952638639,-4542.10807402,0.00027287,2]
[359369311,1745952638650,-1499.8,0.00027287,2]
[359369314,1745952640500,-414.68387867,0.00027287,2]
[359369315,1745952640750,-427.74361316,0.00027287,2]
[359369316,1745952640772,-7667.09330904,0.00027287,2]
[359369317,1745952640782,-8830.8044,0.00027297,2]
[359369318,1745952640793,-206.7568,0.00027297,2]
[359369319,1745952640803,-3606.1351,0.00027297,2]
[359369320,1745952640815,-20180.50609411,0.00027297,2]
[359369321,1745952640826,-226.08,0.000273,2]
[359369322,1745952640837,-154.50474819,0.00027373,2]
[359369323,1745952640847,-504.87009129,0.00027373,2]
[359369324,1745952640858,-500.0,0.00027373,2]
[359369325,1745952640869,-500.0,0.00027373,2]
[359369326,1745952640880,-503.02969115,0.00027373,2]
[359369327,1745952640891,-500.0,0.00027373,2]
[359369328,1745952640901,-500.0,0.00027373,2]
[359369329,1745952640914,-500.0,0.00027373,2]
[359369330,1745952640925,-859.9,0.00027377,2]
[359369331,1745952640936,-98429.4688074,0.00027387,3]
[359369332,1745952640947,-538.37907568,0.00027397,2]
[359369333,1745952640958,-470.0,0.00027397,2]
[359369334,1745952640969,-470.0,0.00027397,2]
[359369335,1745952640979,-530.0,0.00027397,2]
[359369336,1745952640988,-470.0,0.00027397,2]
[359369337,1745952640998,-470.0,0.00027397,2]
[359369338,1745952641009,-471.92,0.00027397,2]
[359369339,1745952641020,-470.0,0.00027397,2]
[359369340,1745952641031,-470.0,0.00027397,2]
[359369341,1745952641042,-470.0,0.00027397,2]
[359369342,1745952641053,-470.0,0.00027397,2]
[359369343,1745952641064,-511.21299389,0.00027397,2]
[359369344,1745952641075,-470.0,0.00027397,2]
[359369345,1745952641086,-470.0,0.00027397,2]
[359369346,1745952641097,-470.0,0.00027397,2]
[359369347,1745952641107,-470.0,0.00027397,2]
[359369348,1745952641117,-470.0,0.00027397,2]
[359369349,1745952641132,-470.0,0.00027397,2]
[359369350,1745952641142,-509.86230248,0.00027397,2]
[359369351,1745952641153,-470.0,0.00027397,2]
[359369352,1745952641164,-470.0,0.00027397,2]
[359369353,1745952641174,-470.0,0.00027397,2]
[359369354,1745952641185,-470.0,0.00027397,2]
[359369355,1745952641195,-470.0,0.00027397,2]
[359369356,1745952641206,-470.0,0.00027397,2]
[359369357,1745952641217,-470.0,0.00027397,2]
[359369358,1745952641228,-470.0,0.00027397,2]
[359369359,1745952641238,-470.0,0.00027397,2]
[359369360,1745952641249,-420.46194494,0.00027397,2]
[359369361,1745952641259,-519.30466061,0.00027397,2]
[359369362,1745952641270,-470.0,0.00027397,2]
[359369363,1745952641282,-470.0,0.00027397,2]
[359369364,1745952641292,-470.0,0.00027397,2]
[359369365,1745952641304,-320.09159156,0.00027397,2]
[359369366,1745952641314,-470.0,0.00027397,2]
[359369367,1745952641328,-470.0,0.00027397,2]
[359369368,1745952641338,-470.0,0.00027397,2]
[359369369,1745952641348,-470.0,0.00027397,2]
[359369370,1745952641359,-470.0,0.00027397,2]
[359369371,1745952641372,-470.0,0.00027397,2]
[359369372,1745952641383,-500.0,0.00027397,2]
[359369373,1745952641393,-470.0,0.00027397,2]
[359369374,1745952641405,-470.0,0.00027397,2]
[359369375,1745952641416,-470.0,0.00027397,2]
[359369376,1745952641427,-511.09505391,0.00027397,2]
[359369377,1745952641438,-470.0,0.00027397,2]
[359369378,1745952641449,-470.0,0.00027397,2]
[359369379,1745952641461,-470.0,0.00027397,2]
[359369380,1745952641472,-494.13878159,0.00027397,2]
[359369381,1745952641482,-470.0,0.00027397,2]
[359369382,1745952641493,-470.0,0.00027397,2]
[359369383,1745952641503,-470.0,0.00027397,2]
[359369384,1745952641513,-500.0,0.00027397,2]
[359369385,1745952641524,-500.0,0.00027397,2]
[359369386,1745952641534,-500.0,0.00027397,2]
[359369387,1745952641545,-470.0,0.00027397,2]
[359369388,1745952641555,-507.77604178,0.00027397,2]
[359369389,1745952641565,-484.96,0.00027397,2]
[359369390,1745952641575,-470.0,0.00027397,2]
[359369391,1745952641586,-470.0,0.00027397,2]
[359369392,1745952641596,-470.0,0.00027397,2]
[359369393,1745952641609,-558.95185631,0.00027397,2]
[359369394,1745952641623,-470.0,0.00027397,2]
[359369395,1745952641636,-470.0,0.00027397,2]
[359369396,1745952641648,-470.0,0.00027397,2]
[359369397,1745952641662,-510.88527114,0.00027397,2]
[359369398,1745952641676,-470.0,0.00027397,2]
[359369399,1745952641689,-516.58467984,0.00027397,2]
[359369400,1745952641701,-508.76252606,0.00027397,2]
[359369401,1745952641713,-470.0,0.00027397,2]
[359369402,1745952641724,-470.0,0.00027397,2]
[359369403,1745952641735,-510.67233276,0.00027397,2]
[359369404,1745952641746,-470.0,0.00027397,2]
[359369405,1745952641757,-470.0,0.00027397,2]
[359369406,1745952641769,-470.0,0.00027397,2]
[359369407,1745952641779,-470.0,0.00027397,2]
[359369408,1745952641790,-470.0,0.00027397,2]
[359369409,1745952641801,-470.0,0.00027397,2]
[359369410,1745952641813,-470.0,0.00027397,2]
[359369411,1745952641824,-470.0,0.00027397,2]
[359369412,1745952641834,-561.20918129,0.00027397,2]
[359369413,1745952641845,-470.0,0.00027397,2]
[359369414,1745952641856,-470.0,0.00027397,2]
[359369415,1745952641866,-507.17289959,0.00027397,2]
[359369416,1745952641880,-562.06466342,0.00027397,2]
[359369417,1745952641890,-530.01065887,0.00027397,2]
[359369418,1745952641900,-470.0,0.00027397,2]
[359369419,1745952641910,-470.0,0.00027397,2]
[359369420,1745952641920,-470.0,0.00027397,2]
[359369421,1745952641930,-515.04771406,0.00027397,2]
[359369422,1745952641941,-470.0,0.00027397,2]
[359369423,1745952641951,-470.0,0.00027397,2]
[359369424,1745952641962,-470.0,0.00027397,2]
[359369425,1745952641973,-470.0,0.00027397,2]
[359369426,1745952641986,-470.0,0.00027397,2]
[359369427,1745952641996,-500.0,0.00027397,2]
[359369428,1745952642007,-500.0,0.00027397,2]
[359369429,1745952642017,-500.0,0.00027397,2]
[359369430,1745952642027,-519.87605263,0.00027397,2]
[359369431,1745952642036,-470.0,0.00027397,2]
[359369432,1745952642046,-470.0,0.00027397,2]
[359369433,1745952642056,-470.0,0.00027397,2]
[359369434,1745952642066,-522.38124843,0.00027397,2]
[359369435,1745952642077,-518.02124894,0.00027397,2]
[359369436,1745952642088,-470.0,0.00027397,2]
[359369437,1745952642097,-470.0,0.00027397,2]
[359369438,1745952642107,-470.0,0.00027397,2]
[359369439,1745952642117,-470.0,0.00027397,2]
[359369440,1745952642130,-470.0,0.00027397,2]
[359369441,1745952642141,-470.0,0.00027397,2]
[359369442,1745952642151,-520.49353869,0.00027397,2]
[359369443,1745952642162,-470.0,0.00027397,2]
[359369444,1745952642172,-470.0,0.00027397,2]
[359369445,1745952642182,-536.87000523,0.00027397,2]
[359369446,1745952642192,-470.0,0.00027397,2]
[359369447,1745952642202,-540.44852726,0.00027397,2]
[359369448,1745952642212,-533.77789465,0.00027397,2]
[359369449,1745952642224,-470.0,0.00027397,2]
[359369450,1745952642234,-470.0,0.00027397,2]
[359369451,1745952642245,-470.0,0.00027397,2]
[359369452,1745952642256,-470.0,0.00027397,2]
[359369453,1745952642266,-470.0,0.00027397,2]
[359369454,1745952642277,-470.0,0.00027397,2]
[359369455,1745952642287,-470.0,0.00027397,2]
[359369456,1745952642298,-470.0,0.00027397,2]
[359369457,1745952642308,-470.0,0.00027397,2]
[359369458,1745952642319,-470.0,0.00027397,2]
[359369459,1745952642331,-508.21049277,0.00027397,2]
[359369460,1745952642343,-470.0,0.00027397,2]
[359369461,1745952642354,-470.0,0.00027397,2]
[359369462,1745952642365,-470.0,0.00027397,2]
[359369463,1745952642376,-511.14124875,0.00027397,2]
[359369464,1745952642386,-470.0,0.00027397,2]
[359369465,1745952642396,-470.0,0.00027397,2]
[359369466,1745952642406,-470.0,0.00027397,2]
[359369467,1745952642417,-237.65173298,0.00027397,2]
[359369468,1745952642427,-470.0,0.00027397,2]
[359369469,1745952642437,-470.0,0.00027397,2]
[359369470,1745952642448,-539.45607725,0.00027397,2]
[359369471,1745952642458,-470.0,0.00027397,2]
[359369472,1745952642469,-470.0,0.00027397,2]
[359369473,1745952642479,-470.0,0.00027397,2]
[359369474,1745952642490,-470.0,0.00027397,2]
[359369475,1745952642500,-470.0,0.00027397,2]
[359369476,1745952642510,-470.0,0.00027397,2]
[359369477,1745952642521,-470.0,0.00027397,2]
[359369478,1745952642531,-470.0,0.00027397,2]
[359369479,1745952642543,-562.63562436,0.00027397,2]
[359369480,1745952642554,-470.0,0.00027397,2]
[359369481,1745952642565,-470.0,0.00027397,2]
[359369482,1745952642575,-470.0,0.00027397,2]
[359369483,1745952642586,-470.0,0.00027397,2]
[359369484,1745952642596,-470.0,0.00027397,2]
[359369485,1745952642607,-470.0,0.00027397,2]
[359369486,1745952642617,-470.0,0.00027397,2]
[359369487,1745952642629,-500.0,0.00027397,2]
[359369488,1745952642639,-606.50610962,0.00027397,2]
[359369489,1745952642650,-470.0,0.00027397,2]
[359369490,1745952642661,-500.0,0.00027397,2]
[359369491,1745952642672,-470.0,0.00027397,2]
[359369492,1745952642682,-470.0,0.00027397,2]
[359369493,1745952642693,-470.0,0.00027397,2]
[359369494,1745952642704,-470.0,0.00027397,2]
[359369495,1745952642713,-271.42421844,0.00027397,2]
[359369496,1745952642724,-500.0,0.00027397,2]
[359369497,1745952642735,-470.0,0.00027397,2]
[359369498,1745952642746,-500.0,0.00027397,2]
[359369499,1745952642759,-500.0,0.00027397,2]
[359369500,1745952642769,-500.0,0.00027397,2]
[359369501,1745952642779,-500.0,0.00027397,2]
[359369502,1745952642788,-470.0,0.00027397,2]
[359369503,1745952642798,-500.0,0.00027397,2]
[359369504,1745952642807,-500.0,0.00027397,2]
[359369505,1745952642817,-470.0,0.00027397,2]
[359369506,1745952642826,-500.0,0.00027397,2]
[359369507,1745952642836,-500.0,0.00027397,2]
[359369508,1745952642846,-500.0,0.00027397,2]
[359369509,1745952642856,-500.0,0.00027397,2]
[359369510,1745952642866,-470.0,0.00027397,2]
[359369511,1745952642877,-470.0,0.00027397,2]
[359369512,1745952642887,-470.0,0.00027397,2]
[359369513,1745952642897,-536.15904161,0.00027397,2]
[359369514,1745952642907,-585.95866082,0.00027397,2]
[359369515,1745952642916,-470.0,0.00027397,2]
[359369516,1745952642926,-470.0,0.00027397,2]
[359369517,1745952642937,-470.0,0.00027397,2]
[359369518,1745952642947,-470.0,0.00027397,2]
[359369519,1745952642959,-470.0,0.00027397,2]
[359369520,1745952642967,-474.58,0.00027397,2]
[359369521,1745952642976,-470.0,0.00027397,2]
[359369522,1745952642986,-470.0,0.00027397,2]
[359369523,1745952642996,-470.0,0.00027397,2]
[359369524,1745952643006,-470.0,0.00027397,2]
[359369525,1745952643016,-500.0,0.00027397,2]
[359369526,1745952643027,-470.0,0.00027397,2]
[359369527,1745952643037,-500.0,0.00027397,2]
[359369528,1745952643046,-470.0,0.00027397,2]
[359369529,1745952643057,-569.90314377,0.00027397,2]
[359369530,1745952643066,-470.0,0.00027397,2]
[359369531,1745952643076,-500.0,0.00027397,2]
[359369532,1745952643086,-511.30064413,0.00027397,2]
[359369533,1745952643096,-470.0,0.00027397,2]
[359369534,1745952643107,-500.0,0.00027397,2]
[359369535,1745952643119,-470.0,0.00027397,2]
[359369537,1745952643130,-500.0,0.00027397,2]
[359369538,1745952643140,-459.12295147,0.00027397,2]
[359369540,1745952643150,-470.0,0.00027397,2]
[359369542,1745952643160,-470.0,0.00027397,2]
[359369544,1745952643170,-470.0,0.00027397,2]
[359369546,1745952643180,-470.0,0.00027397,2]
[359369547,1745952643191,-470.0,0.00027397,2]
[359369549,1745952643201,-548.46153493,0.00027397,2]
[359369551,1745952643212,-470.0,0.00027397,2]
[359369553,1745952643222,-500.0,0.00027397,2]
[359369554,1745952643234,-470.0,0.00027397,2]
[359369555,1745952643244,-150.0,0.00027397,2]
[359369556,1745952643257,-470.0,0.00027397,2]
[359369557,1745952643270,-470.0,0.00027397,2]
[359369563,1745952643565,-500.0,0.00027397,2]
[359369564,1745952643576,-450.19828505,0.00027397,2]
[359369565,1745952643586,-329.9151587,0.00027397,2]
[359369566,1745952643596,-470.0,0.00027397,2]
[359369567,1745952643605,-500.0,0.00027397,2]
[359369568,1745952643615,-470.0,0.00027397,2]
[359369569,1745952643624,-581.58012516,0.00027397,2]
[359369570,1745952643633,-470.0,0.00027397,2]
[359369571,1745952643642,-613.66,0.00027397,2]
[359369572,1745952643652,-470.0,0.00027397,2]
[359369573,1745952643662,-470.0,0.00027397,2]
[359369574,1745952643672,-500.0,0.00027397,2]
[359369575,1745952643681,-470.0,0.00027397,2]
[359369576,1745952643691,-500.0,0.00027397,2]
[359369577,1745952643700,-500.0,0.00027397,2]
[359369578,1745952643709,-470.4,0.00027397,2]
[359369579,1745952643719,-470.0,0.00027397,2]
[359369580,1745952643729,-470.0,0.00027397,2]
[359369581,1745952643739,-470.0,0.00027397,2]
[359369582,1745952643750,-470.0,0.00027397,2]
[359369583,1745952643760,-470.0,0.00027397,2]
[359369584,1745952643770,-470.0,0.00027397,2]
[359369585,1745952643780,-500.0,0.00027397,2]
[359369586,1745952643789,-470.0,0.00027397,2]
[359369587,1745952643799,-470.0,0.00027397,2]
[359369588,1745952643808,-511.12461942,0.00027397,2]
[359369589,1745952643817,-500.0,0.00027397,2]
[359369590,1745952643826,-470.0,0.00027397,2]
[359369591,1745952643835,-500.0,0.00027397,2]
[359369592,1745952643845,-500.0,0.00027397,2]
[359369593,1745952643854,-470.0,0.00027397,2]
[359369594,1745952643863,-470.0,0.00027397,2]
[359369595,1745952643874,-500.0,0.00027397,2]
[359369596,1745952643883,-470.0,0.00027397,2]
[359369597,1745952643893,-500.0,0.00027397,2]
[359369598,1745952643902,-500.0,0.00027397,2]
[359369599,1745952643913,-500.0,0.00027397,2]
[359369600,1745952643924,-586.59,0.00027397,2]
[359369601,1745952643934,-500.0,0.00027397,2]
[359369602,1745952643945,-500.0,0.00027397,2]
[359369603,1745952643955,-500.0,0.00027397,2]
[359369604,1745952643964,-500.0,0.00027397,2]
[359369605,1745952643974,-500.0,0.00027397,2]
[359369606,1745952643983,-500.0,0.00027397,2]
[359369607,1745952643992,-500.0,0.00027397,2]
[359369608,1745952644002,-500.0,0.00027397,2]
[359369609,1745952644012,-500.0,0.00027397,2]
[359369610,1745952644022,-500.0,0.00027397,2]
[359369611,1745952644032,-470.0,0.00027397,2]
[359369612,1745952644042,-470.0,0.00027397,2]
[359369613,1745952644051,-470.0,0.00027397,2]
[359369614,1745952644060,-470.0,0.00027397,2]
[359369615,1745952644070,-500.0,0.00027397,2]
[359369616,1745952644079,-470.0,0.00027397,2]
[359369617,1745952644090,-500.0,0.00027397,2]
[359369618,1745952644099,-590.49811333,0.00027397,2]
[359369619,1745952644108,-500.0,0.00027397,2]
[359369620,1745952644118,-500.0,0.00027397,2]
[359369621,1745952644128,-500.0,0.00027397,2]
[359369622,1745952644137,-500.0,0.00027397,2]
[359369623,1745952644147,-500.0,0.00027397,2]
[359369624,1745952644156,-470.0,0.00027397,2]
[359369625,1745952644165,-500.0,0.00027397,2]
[359369626,1745952644175,-500.0,0.00027397,2]
[359369627,1745952644185,-500.0,0.00027397,2]
[359369628,1745952644195,-597.02,0.00027397,2]
[359369629,1745952644204,-599.92,0.00027397,2]
[359369630,1745952644214,-470.0,0.00027397,2]
[359369631,1745952644223,-470.0,0.00027397,2]
[359369632,1745952644233,-500.0,0.00027397,2]
[359369633,1745952644243,-470.0,0.00027397,2]
[359369634,1745952644253,-470.0,0.00027397,2]
[359369635,1745952644263,-500.0,0.00027397,2]
[359369636,1745952644273,-573.51,0.00027397,2]
[359369637,1745952644283,-470.0,0.00027397,2]
[359369638,1745952644292,-470.0,0.00027397,2]
[359369639,1745952644302,-470.0,0.00027397,2]
[359369640,1745952644312,-531.63,0.00027397,2]
[359369641,1745952644322,-500.0,0.00027397,2]
[359369642,1745952644336,-500.0,0.00027397,2]
[359369643,1745952644346,-500.0,0.00027397,2]
[359369644,1745952644356,-500.0,0.00027397,2]
[359369645,1745952644367,-500.0,0.00027397,2]
[359369646,1745952644379,-470.0,0.00027397,2]
[359369647,1745952644389,-500.0,0.00027397,2]
[359369648,1745952644400,-470.0,0.00027397,2]
[359369649,1745952644411,-470.0,0.00027397,2]
[359369650,1745952644422,-470.0,0.00027397,2]
[359369651,1745952644433,-470.0,0.00027397,2]
[359369652,1745952644444,-500.0,0.00027397,2]
[359369653,1745952644453,-500.0,0.00027397,2]
[359369654,1745952644463,-538.38,0.00027397,2]
[359369655,1745952644473,-575.0,0.00027397,2]
[359369656,1745952644483,-470.0,0.00027397,2]
[359369657,1745952644494,-470.0,0.00027397,2]
[359369658,1745952644504,-500.0,0.00027397,2]
[359369659,1745952644514,-470.0,0.00027397,2]
[359369660,1745952644523,-470.0,0.00027397,2]
[359369661,1745952644533,-470.0,0.00027397,2]
[359369662,1745952644543,-470.0,0.00027397,2]
[359369663,1745952644553,-613.57211481,0.00027397,2]
[359369664,1745952644563,-470.0,0.00027397,2]
[359369665,1745952644572,-519.7455885,0.00027397,2]
[359369666,1745952644582,-470.0,0.00027397,2]
[359369667,1745952644592,-470.0,0.00027397,2]
[359369668,1745952644602,-470.0,0.00027397,2]
[359369669,1745952644611,-470.0,0.00027397,2]
[359369670,1745952644621,-470.0,0.00027397,2]
[359369671,1745952644633,-500.0,0.00027397,2]
[359369672,1745952644644,-500.0,0.00027397,2]
[359369673,1745952644653,-470.0,0.00027397,2]
[359369674,1745952644663,-500.0,0.00027397,2]
[359369675,1745952644674,-510.79,0.00027397,2]
[359369676,1745952644685,-470.0,0.00027397,2]
[359369677,1745952644695,-470.0,0.00027397,2]
[359369678,1745952644705,-517.79685938,0.00027397,2]
[359369679,1745952644715,-470.0,0.00027397,2]
[359369680,1745952644725,-470.0,0.00027397,2]
[359369681,1745952644735,-470.0,0.00027397,2]
[359369682,1745952644744,-470.0,0.00027397,2]
[359369683,1745952644754,-500.0,0.00027397,2]
[359369684,1745952644765,-470.0,0.00027397,2]
[359369685,1745952644775,-470.0,0.00027397,2]
[359369686,1745952644784,-500.0,0.00027397,2]
[359369687,1745952644794,-470.0,0.00027397,2]